bitfinex-derivatives/quotes_BNBF0:USTF0_20250510
["timestamp","ask_amount","ask_price","bid_price","bid_amount"]
[1746871464234,0.30313594,659.77,659.03,0.9148542]
[1746871464436,0.30313594,659.77,659.04,0.9148542]
[1746871464632,0.30313594,659.77,659.05,0.9148542]
[1746871464838,0.30313594,659.77,659.06,0.9148542]
[1746871465038,0.30313594,659.77,659.07,0.9148542]
[1746871465236,0.30313594,659.77,659.08,0.9148542]
[1746871465435,0.30313594,659.77,659.09,0.9148542]
[1746871465632,0.30313594,659.77,659.1,0.9148542]
[1746871465837,0.30313594,659.77,658.99,0.26381824]
[1746871465838,0.30313594,659.77,659.11,0.9148542]
[1746871466037,0.30313594,659.77,659.12,0.9148542]
[1746871466234,0.30313594,659.77,659.13,0.9148542]
[1746871466537,0.30313594,659.77,659.14,0.9148542]
[1746871466731,0.30313594,659.77,659.15,0.9148542]
[1746871466936,0.30313594,659.77,659.16,0.9148542]
[1746871467138,0.30313594,659.77,659.17,0.9148542]
[1746871467339,0.30313594,659.77,659.18,0.9148542]
[1746871467538,0.30313594,659.77,659.19,0.9148542]
[1746871467738,0.30313594,659.77,659.2,0.9148542]
[1746871467939,0.30313594,659.77,659.21,0.9148542]
[1746871468139,0.30313594,659.77,659.22,0.9148542]
[1746871468339,0.30313594,659.77,659.23,0.9148542]
[1746871468539,0.30313594,659.77,659.24,0.9148542]
[1746871468740,0.30313594,659.77,659.25,0.9148542]
[1746871468942,0.30313594,659.77,659.26,0.9148542]
[1746871469142,0.30313594,659.77,659.12,0.26366932]
[1746871469437,0.30313594,659.77,659.13,0.9128562]
[1746871469640,0.30313594,659.77,659.14,0.9128562]
[1746871469838,0.30313594,659.77,659.15,0.91286743]
[1746871470140,0.30313594,659.77,659.16,0.91286743]
[1746871470341,0.30313594,659.77,659.17,0.91286743]
[1746871470540,0.30313594,659.77,659.18,0.91286743]
[1746871470739,0.30313594,659.77,659.19,0.91286743]
[1746871471041,0.30313594,659.77,659.2,0.91286743]
[1746871471238,0.30313594,659.77,659.21,0.91286743]
[1746871471435,0.30313594,659.77,659.22,0.91286743]
[1746871471641,0.30313594,659.77,659.23,0.91228164]
[1746871471841,0.30313594,659.77,659.24,0.91228164]
[1746871472137,0.30313594,659.77,659.25,0.91228164]
[1746871472340,0.30313594,659.77,659.16,0.26372827]
[1746871472542,0.30313594,659.77,659.17,0.91212555]
[1746871472741,0.30313594,659.77,659.18,0.91212555]
[1746871472938,0.30313594,659.77,659.19,0.91212555]
[1746871473143,0.30313594,659.77,659.2,0.91212555]
[1746871473443,0.30313594,659.77,659.21,0.91155851]
[1746871473746,0.30313594,659.77,659.22,0.91155851]
[1746871473942,0.30313594,659.77,659.23,0.91155851]
[1746871474144,0.30313594,659.77,659.24,0.91155851]
[1746871474345,0.30313594,659.77,659.25,0.91155851]
[1746871474546,0.30313594,659.77,659.26,0.91155851]
[1746871474742,0.30313594,659.77,659.27,0.91155851]
[1746871475039,0.30313594,659.77,659.28,0.91155851]
[1746871475242,0.30313594,659.77,659.29,0.91155851]
[1746871475442,0.30313594,659.77,659.3,0.91155851]
[1746871475645,0.30313594,659.77,659.31,0.91155851]
[1746871475845,0.30313594,659.77,659.32,0.91155851]
[1746871476146,0.30313594,659.77,659.2,0.2636873]
[1746871476346,0.30313594,659.77,659.21,0.90951367]
[1746871476542,0.30313594,659.77,659.22,0.90951367]
[1746871476747,0.30313594,659.77,659.23,0.90951367]
[1746871476946,0.30313594,659.77,659.24,0.90951367]
[1746871477148,0.30313594,659.77,659.25,0.90951367]
[1746871477344,0.30313594,659.77,659.26,0.90951367]
[1746871477544,0.30313594,659.77,659.27,0.90951367]
[1746871477741,0.30313594,659.77,659.2,0.2636873]
[1746871478047,0.30313594,659.77,659.21,0.90921062]
[1746871478246,0.30313594,659.77,659.22,0.90921062]
[1746871478442,0.30313594,659.77,659.23,1.18771315]
[1746871478643,0.30313594,659.77,659.24,0.90921062]
[1746871478844,0.30313594,659.77,659.25,0.90921062]
[1746871479046,0.30313594,659.77,659.26,0.90921062]
[1746871479247,0.30313594,659.77,659.27,0.90921062]
[1746871479447,0.30313594,659.77,659.28,0.90921062]
[1746871479648,0.30313594,659.77,659.29,0.90921062]
[1746871479845,0.30313594,659.77,659.2,0.26374926]
[1746871480042,0.30313594,659.77,659.21,0.90787781]
[1746871480243,0.30313594,659.77,659.22,0.90787781]
[1746871480442,0.30313594,659.77,659.23,0.90753587]
[1746871480752,0.30313594,659.77,659.24,0.90753587]
[1746871481047,0.30313594,659.77,659.25,0.90753587]
[1746871481247,0.30313594,659.77,659.26,0.90753587]
[1746871481442,0.30313594,659.77,659.27,0.90753587]
[1746871481645,0.30313594,659.77,658.54,0.95561003]
[1746871481843,0.30313594,659.77,658.55,0.90731828]
[1746871482048,0.30313594,659.77,658.56,0.90731828]
[1746871482343,0.30313594,659.77,658.57,0.90731828]
[1746871482548,0.30313594,659.77,658.58,0.90731828]
[1746871482749,0.30313594,659.77,658.59,1.18581819]
[1746871482946,0.30313594,659.77,658.6,0.90731828]
[1746871483244,0.30313594,659.77,658.61,0.90731828]
[1746871483449,0.30313594,659.77,658.62,0.90731828]
[1746871483644,0.30313594,659.77,658.63,0.90731828]
[1746871483848,0.30313594,659.77,658.64,1.18581819]
[1746871484047,0.30313594,659.77,658.65,0.90731828]
[1746871484249,0.30313594,659.77,658.66,0.90731828]
[1746871484449,0.30313594,659.77,658.67,1.18581819]
[1746871484746,0.30313594,659.77,658.68,0.90731828]
[1746871484944,0.30313594,659.77,658.69,0.90731828]
[1746871485147,0.30313594,659.77,658.7,1.18581819]
[1746871485348,0.30313594,659.77,658.71,0.90731828]
[1746871485545,0.30313594,659.77,658.72,0.90731828]
[1746871485750,0.30313594,659.77,658.73,0.90667941]
[1746871485951,0.30313594,659.77,658.74,0.90667941]
[1746871486151,0.30313594,659.77,658.75,0.90667941]
[1746871486353,0.30313594,659.77,658.76,0.90667941]
[1746871486551,0.30313594,659.77,658.77,0.90667941]
[1746871486853,0.30313594,659.77,658.78,1.18517932]
[1746871487152,0.30313594,659.77,658.79,0.90667941]
[1746871487447,0.30313594,659.77,658.8,0.90667941]
[1746871487651,0.30313594,659.77,658.81,0.90667941]
[1746871487865,0.30313594,659.77,658.82,0.90667941]
[1746871488046,0.30313594,659.77,658.83,0.90667941]
[1746871488247,0.30313594,659.77,658.84,0.90667941]
[1746871488547,0.30313594,659.77,658.85,1.18518175]
[1746871488746,0.30313594,659.77,658.86,0.90667941]
[1746871488948,0.30313594,659.77,658.87,0.90667941]
[1746871489148,0.30313594,659.77,658.88,0.90667941]
[1746871489354,0.30313594,659.77,658.89,1.18481681]
[1746871489557,0.30313594,659.77,658.9,0.90631429]
[1746871489854,0.30313594,659.77,658.9,1.18481681]
[1746871490053,0.30313594,659.77,658.91,0.90631429]
[1746871490250,0.30313594,659.77,658.91,1.18481681]
[1746871490454,0.30313594,659.77,658.92,0.90631429]
[1746871490655,0.30313594,659.77,658.93,0.27850252]
[1746871490856,0.30313594,659.77,658.94,0.90631429]
[1746871491255,0.30313594,659.77,658.95,0.27850252]
[1746871491455,0.30313594,659.77,658.96,0.90631429]
[1746871491656,0.30313594,659.77,658.97,1.18481681]
[1746871491956,0.30313594,659.77,658.98,1.18481681]
[1746871492157,0.30313594,659.77,658.99,0.90631429]
[1746871492455,0.30313594,659.77,658.99,1.18481681]
[1746871492755,0.30313594,659.77,659.0,1.18481681]
[1746871492953,0.30313594,659.77,659.01,0.90631429]
[1746871493450,0.30313594,659.77,659.02,0.90631429]
[1746871493754,0.30313594,659.77,659.03,0.90631429]
[1746871493951,0.30313594,659.77,659.04,0.90631429]
[1746871494151,0.30313594,659.77,659.05,0.90631429]
[1746871494454,0.30313594,659.77,659.06,0.90631429]
[1746871494653,0.30313594,659.77,659.07,0.90631429]
[1746871494855,0.30313594,659.77,659.08,0.90631429]
[1746871495054,0.30313594,659.77,659.09,0.90631429]
[1746871495254,0.30313594,659.77,659.1,0.90631429]
[1746871495457,0.30313594,659.77,659.11,0.90631429]
[1746871495655,0.30313594,659.77,659.12,0.90631429]
[1746871495858,0.30313594,659.77,659.13,0.90631429]
[1746871496057,0.30313594,659.77,658.35,0.95561003]
[1746871496255,0.30313594,659.77,658.36,1.21082156]
[1746871496455,0.30313594,659.77,658.37,0.9070364]
[1746871496660,0.30313594,659.77,658.38,0.9070364]
[1746871496858,0.30313594,659.77,658.39,1.21080772]
[1746871497164,0.30313594,659.77,658.4,0.9070364]
[1746871497456,0.30313594,659.77,658.41,0.9070364]
[1746871497655,0.30313594,659.77,658.42,0.9070364]
[1746871497856,0.30313594,659.77,658.43,0.9070364]
[1746871498058,0.30313594,659.77,658.44,0.90706552]
[1746871498258,0.30313594,659.77,658.45,0.90706552]
[1746871498460,0.30313594,659.77,658.46,0.90706552]
[1746871498759,0.30313594,659.77,658.47,0.90706552]
[1746871498961,0.30313594,659.77,658.48,1.18561522]
[1746871499163,0.30313594,659.77,658.49,0.90706552]
[1746871499457,0.30313594,659.77,658.5,0.90706552]
[1746871499657,0.30313594,659.77,658.51,0.90706552]
[1746871499861,0.30313594,659.77,658.52,0.90706552]
[1746871500063,0.30313594,659.77,658.53,1.18561522]
[1746871500258,0.30313594,659.77,658.54,0.90706552]
[1746871500462,0.30313594,659.77,658.55,0.90706552]
[1746871500659,0.30313594,659.77,658.56,0.90706552]
[1746871500860,0.30313594,659.77,658.57,0.90706552]
[1746871501064,0.30313594,659.77,658.58,0.90706552]
[1746871501260,0.30313594,659.77,658.59,0.90706552]
[1746871501465,0.30313594,659.77,658.6,0.90706552]
[1746871501665,0.30313594,659.77,658.61,1.18561522]
[1746871501967,0.30313594,659.77,658.62,0.90706552]
[1746871502165,0.30313594,659.77,658.63,0.90706552]
[1746871502365,0.30313594,659.77,658.64,1.18561522]
[1746871502566,0.30313594,659.77,658.65,0.90706552]
[1746871502767,0.30313594,659.77,658.66,0.90743366]
[1746871502960,0.30313594,659.77,658.67,0.90743366]
[1746871503161,0.30313594,659.77,658.68,0.90743366]
[1746871503362,0.30313594,659.77,658.69,1.18598336]
[1746871503661,0.30313594,659.77,658.7,0.90743366]
[1746871503861,0.30313594,659.77,658.7,1.18598336]
[1746871504065,0.30313594,659.77,658.71,1.18598336]
[1746871504266,0.30313594,659.77,658.72,0.90743366]
[1746871504464,0.30313594,659.77,658.72,1.18598336]
[1746871504668,0.30313594,659.77,658.73,0.90743366]
[1746871504963,0.30313594,659.77,658.73,1.18598336]
[1746871505168,0.30313594,659.77,658.74,1.18598336]
[1746871505367,0.30313594,659.77,658.75,0.90743366]
[1746871505567,0.30313594,659.77,658.75,1.18598336]
[1746871505763,0.30313594,659.77,658.76,0.90743366]
[1746871505967,0.30313594,659.77,658.76,1.18598336]
[1746871506270,0.30313594,659.77,658.77,1.18598336]
[1746871506470,0.30313594,659.77,658.78,0.90743366]
[1746871506671,0.30313594,659.77,658.78,1.18598336]
[1746871506870,0.30313594,659.77,658.79,0.90743366]
[1746871507066,0.30313594,659.77,658.79,1.18598336]
[1746871507371,0.30313594,659.77,658.8,1.18598336]
[1746871507570,0.30313594,659.77,658.81,1.18598336]
[1746871507771,0.30313594,659.77,658.82,0.90743366]
[1746871508273,0.30313594,659.77,658.82,1.18598336]
[1746871508474,0.30313594,659.77,658.83,0.90743366]
[1746871508677,0.30313594,659.77,658.83,1.18598336]
[1746871508877,0.30313594,659.77,658.84,0.90743366]
[1746871509176,0.30313594,659.77,658.84,1.18598336]
[1746871509376,0.30313594,659.77,658.85,0.90743366]
[1746871509573,0.30313594,659.77,658.85,1.18598336]
[1746871509779,0.30313594,659.77,658.86,1.18598336]
[1746871509974,0.30313594,659.77,658.87,0.90743366]
[1746871510179,0.30313594,659.77,658.87,1.18598336]
[1746871510479,0.30313594,659.77,658.88,1.18598336]
[1746871510680,0.30313594,659.77,658.89,0.90743366]
[1746871510881,0.30313594,659.77,658.89,1.18598336]
[1746871511081,0.30313594,659.77,658.9,1.18598336]
[1746871511274,0.30313594,659.77,658.91,0.90743366]
[1746871511479,0.30313594,659.77,658.91,1.18598336]
[1746871511678,0.30313594,659.77,658.92,0.90874745]
[1746871511876,0.30313594,659.77,658.93,0.90874745]
[1746871512082,0.30313594,659.77,658.94,1.18729715]
[1746871512282,0.30313594,659.77,658.95,0.90874745]
[1746871512477,0.30313594,659.77,658.96,0.90874745]
[1746871512783,0.30313594,659.77,658.97,0.90874745]
[1746871512983,0.30313594,659.77,658.98,0.90874745]
[1746871513182,0.30313594,659.77,658.99,1.18729715]
[1746871513382,0.30313594,659.77,659.0,0.90874745]
[1746871514281,0.30313594,659.77,659.01,0.90862095]
[1746871514478,0.30313594,659.77,659.02,0.90862095]
[1746871514682,0.30313594,659.77,659.03,0.90862095]
[1746871514880,0.30313594,659.77,659.04,1.18717065]
[1746871515079,0.30313594,659.77,659.05,0.90862095]
[1746871515379,0.30313594,659.77,659.06,0.90862095]
[1746871515583,0.30313594,659.77,659.07,0.90862095]
[1746871515884,0.30313594,659.77,659.08,0.2785497]
[1746871516085,0.30313594,659.77,659.09,0.90862095]
[1746871516385,0.30313594,659.77,659.1,0.90862095]
[1746871516584,0.30313594,659.77,659.11,0.90862095]
[1746871516885,0.30313594,659.77,659.12,0.90862095]
[1746871517085,0.30313594,659.77,659.13,0.90862095]
[1746871517384,0.30313594,659.77,659.14,0.90862095]
[1746871517586,0.30313594,659.77,659.14,1.18717065]
[1746871517885,0.30313594,659.77,659.15,0.90862095]
[1746871518085,0.30313594,659.77,659.16,0.90862095]
[1746871518380,0.30313594,659.77,659.17,1.18717065]
[1746871518578,0.30313594,659.77,659.18,1.18729434]
[1746871518783,0.30313594,659.77,659.19,0.90874464]
[1746871518979,0.30313594,659.77,659.19,1.18729434]
[1746871519185,0.30313594,659.77,659.2,0.90874464]
[1746871519487,0.30313594,659.77,659.21,0.90874464]
[1746871519787,0.30313594,659.77,659.22,0.90874464]
[1746871519980,0.30313594,659.77,659.23,0.90874464]
[1746871520182,0.30313594,659.77,659.24,0.90874464]
[1746871520380,0.30313594,659.77,659.25,0.90874464]
[1746871520580,0.30313594,659.77,659.26,0.90874464]
[1746871520779,0.30313594,659.77,659.27,0.90874464]
[1746871520980,0.30313594,659.77,659.28,0.90874464]
[1746871521180,0.30313594,659.77,659.29,0.90874464]
[1746871521386,0.30313594,659.77,659.3,0.90874464]
[1746871521586,0.30313594,659.77,659.31,0.90874464]
[1746871521787,0.30313594,659.77,659.32,0.90874464]
[1746871522086,0.30313594,659.77,659.33,0.90920666]
[1746871522286,0.30313594,659.77,659.34,0.90920666]
[1746871522488,0.30313594,659.77,659.35,0.90920666]
[1746871522684,0.30313594,659.77,659.1,0.26359742]
[1746871522685,0.30313594,659.77,659.36,0.90920666]
[1746871522984,0.30313594,659.77,659.37,0.90920666]
[1746871523185,0.30313594,659.77,659.38,0.90920666]
[1746871523481,0.30313594,659.77,659.39,0.90920666]
[1746871523683,0.30313594,659.77,659.4,0.90920666]
[1746871523882,0.30313594,659.77,659.41,0.90920666]
[1746871524083,0.30313594,659.77,659.42,0.90920666]
[1746871524282,0.30313594,659.77,659.1,0.26359742]
[1746871524283,0.30313594,659.77,659.43,0.90920666]
[1746871524486,0.30313594,659.77,659.44,0.90920666]
[1746871524683,0.30313594,659.77,659.45,0.90920666]
[1746871524886,0.30313594,659.77,659.46,0.90920666]
[1746871525083,0.30313594,659.77,659.1,0.26359742]
[1746871525284,0.30313594,659.77,659.11,0.90925288]
[1746871525485,0.30313594,659.77,659.12,1.18771488]
[1746871525691,0.30313594,659.77,659.13,0.90926522]
[1746871525889,0.30313594,659.77,659.14,0.90926522]
[1746871526086,0.30313594,659.77,659.15,0.90926522]
[1746871526285,0.30313594,659.77,659.16,0.90926522]
[1746871526583,0.30313594,659.77,659.17,0.90926522]
[1746871526786,0.30313594,659.77,659.18,1.18771488]
[1746871526988,0.30313594,659.77,659.19,0.90926522]
[1746871527192,0.30313594,659.77,659.19,1.18771488]
[1746871527391,0.30313594,659.77,659.2,0.90926522]
[1746871527691,0.30313594,659.77,659.2,1.18771488]
[1746871527891,0.30313594,659.77,659.21,0.90926522]
[1746871528088,0.30313594,659.77,659.22,0.90926522]
[1746871528286,0.30313594,659.77,659.23,0.90926522]
[1746871528492,0.30313594,659.77,659.24,0.90926522]
[1746871528687,0.30313594,659.77,659.25,1.18771488]
[1746871528888,0.30313594,659.77,659.26,0.90926522]
[1746871529193,0.30313594,659.77,659.27,0.90926522]
[1746871529391,0.30313594,659.77,659.28,0.90926522]
[1746871529993,0.30313594,659.77,659.29,0.90926522]
[1746871530194,0.30313594,659.77,659.3,0.90926522]
[1746871530389,0.30313594,659.77,659.31,0.90926522]
[1746871530594,0.30313594,659.77,659.32,0.90926522]
[1746871530894,0.30313594,659.77,659.33,0.90926522]
[1746871531190,0.30313594,659.77,659.34,0.90926522]
[1746871531394,0.30313594,659.77,659.35,0.90926522]
[1746871531693,0.30313594,659.77,659.36,0.90926522]
[1746871531890,0.30313594,659.77,659.37,0.90926522]
[1746871532094,0.30313594,659.77,659.38,0.90926522]
[1746871532391,0.30313594,659.77,659.39,0.90926522]
[1746871532594,0.30313594,659.77,659.4,0.90888914]
[1746871532795,0.30313594,659.77,659.41,0.90888914]
[1746871533094,0.30313594,659.77,659.42,0.90888914]
[1746871533389,0.30313594,659.77,659.43,0.90888914]
[1746871533594,0.30313594,659.77,659.44,0.90888914]
[1746871533793,0.30313594,659.77,659.19,0.26357746]
[1746871533794,0.30313594,659.77,659.45,0.90888914]
[1746871533996,0.30313594,659.77,659.19,0.26357746]
[1746871534190,0.30313594,659.77,659.2,0.90877586]
[1746871534390,0.30313594,659.77,659.21,0.90877586]
[1746871534592,0.30313594,659.77,659.22,0.90877586]
[1746871534793,0.30313594,659.77,659.23,0.90877586]
[1746871534994,0.30313594,659.77,659.24,1.1872222]
[1746871535195,0.30313594,659.77,659.25,0.90877586]
[1746871535391,0.30313594,659.77,659.26,0.90877586]
[1746871535896,0.30313594,659.77,659.27,0.90877586]
[1746871536093,0.30313594,659.77,659.28,0.90877586]
[1746871536291,0.30313594,659.77,659.29,0.90877586]
[1746871536491,0.30313594,659.77,659.3,0.90877586]
[1746871536794,0.30313594,659.77,659.31,0.90877586]
[1746871536994,0.30313594,659.77,659.32,0.90877586]
[1746871537192,0.30313594,659.77,659.33,0.90877586]
[1746871537392,0.30313594,659.77,659.34,0.90877586]
[1746871537592,0.30313594,659.77,659.35,0.90877586]
[1746871537796,0.30313594,659.77,659.36,0.90877586]
[1746871537997,0.30313594,659.77,659.37,0.90851897]
[1746871538195,0.30313594,659.77,659.38,0.90851897]
[1746871538392,0.30313594,659.77,659.39,0.90851897]
[1746871538691,0.30313594,659.77,659.4,0.90851897]
[1746871538892,0.30313594,659.77,659.41,0.90851897]
[1746871539197,0.30313594,659.77,659.42,0.90851897]
[1746871539397,0.30313594,659.77,659.43,0.90851897]
[1746871539692,0.30313594,659.77,659.32,0.26354153]
[1746871539890,0.30313594,659.77,659.33,0.90860761]
[1746871540094,0.28942158,659.77,659.34,0.90860761]
[1746871540292,0.28942158,659.77,659.35,0.90860761]
[1746871540499,0.28942158,659.77,659.36,0.90860761]
[1746871540692,0.28942158,659.77,659.37,0.90860761]
[1746871540896,0.28942158,659.77,659.38,0.90860761]
[1746871541396,0.28942158,659.77,658.59,0.95561003]
[1746871541597,0.28942158,659.77,658.6,0.30367446]
[1746871541795,0.28942158,659.77,658.6,0.58211707]
[1746871541993,0.28942158,659.77,658.61,0.27844261]
[1746871542297,0.28942158,659.77,658.62,0.30366523]
[1746871542498,0.28942158,659.77,658.62,0.58210784]
[1746871542898,0.28942158,659.77,658.63,0.27844261]
[1746871543198,0.28942158,659.77,658.64,0.58209862]
[1746871543399,0.28942158,659.77,658.65,0.3036514]
[1746871543996,0.28942158,659.77,658.66,0.27841477]
[1746871544201,0.28942158,659.77,658.67,0.30364218]
[1746871544597,0.28942158,659.77,658.67,0.58205695]
[1746871544903,0.28942158,659.77,658.68,0.27841477]
[1746871545104,0.28942158,659.77,658.69,0.30363296]
[1746871545498,0.28942158,659.77,658.78,0.95561003]
[1746871545804,0.28942158,659.77,658.79,0.27841477]
[1746871546203,0.28942158,659.77,658.8,0.27841477]
[1746871546396,0.28942158,659.77,659.39,0.9085669]
[1746871546600,0.28942158,659.77,659.4,0.9085669]
[1746871546802,0.28942158,659.77,659.41,0.9085669]
[1746871546997,0.28942158,659.77,659.42,0.9085669]
[1746871547197,0.28942158,659.77,659.43,0.9085669]
[1746871547502,0.28942158,659.77,659.44,0.9085669]
[1746871547704,0.28942158,659.77,659.45,0.9085669]
[1746871548005,0.28942158,659.77,659.46,0.9085669]
[1746871548200,0.28942158,659.77,659.47,0.9085669]
[1746871548401,0.28942158,659.77,659.48,0.9085669]
[1746871548597,0.28942158,659.77,659.49,0.9085669]
[1746871548803,0.28942158,659.77,659.5,0.9085669]
[1746871549002,0.28942158,659.77,659.51,0.9085669]
[1746871549203,0.28942158,659.77,658.97,0.26351259]
[1746871549398,0.28942158,659.77,658.98,1.18545477]
[1746871549604,0.28942158,659.77,658.99,0.90705503]
[1746871549800,0.28942158,659.77,659.0,0.90705503]
[1746871549999,0.28942158,659.77,659.01,0.90705503]
[1746871550198,0.28942158,659.77,659.02,0.90705503]
[1746871550402,0.28942158,659.77,659.03,0.90705503]
[1746871550699,0.28942158,659.77,659.04,0.90705503]
[1746871550902,0.28942158,659.77,659.05,0.90705503]
[1746871551098,0.28942158,659.77,659.06,0.90705503]
[1746871551302,0.28942158,659.77,659.07,1.18545477]
[1746871551499,0.28942158,659.77,659.08,1.18545477]
[1746871551700,0.28942158,659.77,659.09,0.90705503]
[1746871551900,0.28942158,659.77,659.09,0.27839974]
[1746871552100,0.28942158,659.77,659.1,0.90680614]
[1746871552300,0.28942158,659.77,659.11,0.90680614]
[1746871552503,0.28942158,659.77,659.12,1.18520588]
[1746871552703,0.28942158,659.77,659.13,0.90680614]
[1746871552906,0.28942158,659.77,659.14,0.90680614]
[1746871553106,0.28942158,659.77,659.15,0.90668078]
[1746871553306,0.28942158,659.77,659.16,1.18508052]
[1746871553605,0.28942158,659.77,659.17,0.90668078]
[1746871553801,0.28942158,659.77,659.18,0.90661449]
[1746871554007,0.28942158,659.77,659.19,0.90661449]
[1746871554207,0.28942158,659.77,659.2,0.90661449]
[1746871554507,0.28942158,659.77,659.21,0.27839974]
[1746871554807,0.28942158,659.77,659.22,0.90661449]
[1746871555106,0.28942158,659.77,659.23,1.18501423]
[1746871555402,0.28942158,659.77,659.24,0.27839974]
[1746871555606,0.28942158,659.77,659.25,0.90656391]
[1746871555907,0.28942158,659.77,659.26,0.90656391]
[1746871556106,0.28942158,659.77,659.27,1.18496365]
[1746871556301,0.28942158,659.77,659.28,0.90656391]
[1746871556505,0.28942158,659.77,659.28,1.18496365]
[1746871556709,0.28942158,659.77,659.29,0.90656391]
[1746871556907,0.28942158,659.77,659.3,0.90656391]
[1746871557108,0.28942158,659.77,659.31,1.18496365]
[1746871557309,0.28942158,659.77,659.32,0.90656391]
[1746871557603,0.28942158,659.77,659.32,1.18496365]
[1746871557803,0.28942158,659.77,659.33,0.90656391]
[1746871558109,0.28942158,659.77,659.33,1.18496365]
[1746871558301,0.28942158,659.77,659.34,1.18496365]
[1746871558607,0.28942158,659.77,659.35,1.18496365]
[1746871558804,0.28942158,659.77,659.36,0.90656391]
[1746871559002,0.28942158,659.77,659.37,1.18599944]
[1746871559208,0.28942158,659.77,659.38,0.9075997]
[1746871559503,0.28942158,659.77,659.38,1.18599944]
[1746871559703,0.28942158,659.77,659.39,1.18599944]
[1746871559905,0.28942158,659.77,659.4,0.9075997]
[1746871560103,0.28942158,659.77,659.41,0.9075997]
[1746871560303,0.28942158,659.77,659.42,0.9075997]
[1746871560502,0.28942158,659.77,659.43,0.9075997]
[1746871560707,0.28942158,659.77,659.44,0.90752766]
[1746871560903,0.28942158,659.77,659.45,0.90752766]
[1746871561105,0.28942158,659.77,659.46,0.90752766]
[1746871561302,0.28942158,659.77,659.47,0.90752766]
[1746871561504,0.28942158,659.77,659.48,0.90752766]
[1746871561806,0.28942158,659.77,659.49,0.90752766]
[1746871562005,0.28942158,659.77,659.5,0.90752766]
[1746871562308,0.28942158,659.77,659.51,0.90752766]
[1746871562509,0.28942158,659.77,659.52,1.18590384]
[1746871562710,0.28942158,659.77,659.53,0.90752766]
[1746871562909,0.28942158,659.77,659.53,1.18590384]
[1746871563110,0.28942158,659.77,659.54,0.90752766]
[1746871563409,0.28942158,659.77,659.54,1.18590384]
[1746871563710,0.28942158,659.77,659.55,0.90752766]
[1746871563910,0.28942158,659.77,659.55,1.18590384]
[1746871564109,0.28942158,659.77,659.56,1.18590384]
[1746871564308,0.28942158,659.77,659.57,0.90752766]
[1746871564711,0.28942158,659.77,659.37,0.26358045]
[1746871564907,0.28942158,659.77,659.38,0.9077093]
[1746871565112,0.28942158,659.77,659.39,1.18607667]
[1746871565309,0.28942158,659.77,659.4,0.9077093]
[1746871565509,0.28942158,659.77,659.41,0.9077093]
[1746871565713,0.28942158,659.77,659.42,0.9077093]
[1746871565909,0.28942158,659.77,659.43,0.9077093]
[1746871566213,0.28942158,659.77,659.44,1.17675849]
[1746871566409,0.28942158,659.77,659.44,0.2783707]
[1746871566614,0.28942158,659.77,659.37,0.26362338]
[1746871566815,0.28942158,659.77,659.38,0.27837088]
[1746871568416,0.28942158,659.77,659.37,0.26359742]
[1746871568712,0.28942158,659.77,659.39,0.27837088]
[1746871569012,0.28942158,659.77,659.38,0.27837088]
[1746871571518,0.28942158,659.77,658.7,0.27837088]
[1746871571817,0.28942158,659.77,658.71,0.27837088]
[1746871572118,0.28942158,659.77,658.72,0.27837088]
[1746871572419,0.28942158,659.77,658.73,0.27837088]
[1746871572713,0.28942158,659.77,658.74,0.27837088]
[1746871573019,0.28942158,659.77,658.75,0.27837088]
[1746871573417,0.28942158,659.77,658.76,0.27837088]
[1746871573717,0.28942158,659.77,658.77,0.27837088]
[1746871574217,0.28942158,659.77,658.78,0.27837088]
[1746871574517,0.28942158,659.77,658.7,0.27837088]
[1746871574917,0.28942158,659.77,658.71,0.27837088]
[1746871575219,0.28942158,659.77,658.71,0.54187948]
[1746871575418,0.28942158,659.77,658.72,0.27837088]
[1746871577320,0.28942158,659.77,658.7,0.27837088]
[1746871577520,0.28942158,659.77,658.71,0.2636933]
[1746871577722,0.28942158,659.77,658.71,0.54206418]
[1746871578015,0.28942158,659.77,658.72,0.27837088]
[1746871578220,0.28942158,659.77,658.73,0.91020334]
[1746871578416,0.28942158,659.77,658.74,0.91020334]
[1746871578621,0.28942158,659.77,658.75,0.91020334]
[1746871578824,0.28942158,659.77,658.76,0.91020334]
[1746871579027,0.28942158,659.77,658.77,0.91020334]
[1746871579223,0.28942158,659.77,658.78,0.91020334]
[1746871579417,0.28942158,659.77,658.79,0.90988756]
[1746871579722,0.28942158,659.77,658.8,0.90988756]
[1746871579921,0.28942158,659.77,658.81,1.18825844]
[1746871580117,0.28942158,659.77,658.82,1.18825844]
[1746871580323,0.28942158,659.77,658.83,0.90988756]
[1746871580519,0.28942158,659.77,658.84,1.18825844]
[1746871580724,0.28942158,659.77,658.85,0.90988756]
[1746871581023,0.28942158,659.77,658.86,1.18825844]
[1746871581223,0.28942158,659.77,658.87,0.90988756]
[1746871581424,0.28942158,659.77,658.88,1.18825844]
[1746871581621,0.28942158,659.77,658.89,0.90988756]
[1746871581824,0.28942158,659.77,658.9,0.90988756]
[1746871582021,0.28942158,659.77,658.91,0.90988756]
[1746871582225,0.28942158,659.77,658.92,0.90988756]
[1746871582425,0.28942158,659.77,658.93,0.90988756]
[1746871582621,0.28942158,659.77,658.94,0.90988756]
[1746871582823,0.28942158,659.77,658.95,0.90988756]
[1746871583023,0.28942158,659.77,658.96,0.90973704]